fUSD/lending_fUSD_20240103
["ID","MTS","AMOUNT","RATE_DAILY","PERIOD"]
[310089917,1704317432614,-185.2483426,0.00023045,2]
[310089919,1704317432627,-150.0,0.00023045,2]
[310089921,1704317432642,-5449.43401793,0.00023048,2]
[310089923,1704317432655,-377.43337538,0.00023048,2]
[310089926,1704317432674,-424.43680418,0.00023048,2]
[310089979,1704317439665,-841.77750463,0.00023047,2]
[310089982,1704317439679,-606.70110647,0.00023047,2]
[310089984,1704317439691,-3847.59385649,0.00023047,2]
[310089994,1704317439781,-12624.01913636,0.00023047,2]
[310090001,1704317439843,-10556.08390128,0.00023047,2]
[310090002,1704317439905,-4811.49528957,0.00023047,2]
[310090003,1704317439915,-1234.37586834,0.00023048,2]
[310090004,1704317439925,-2287.26021756,0.00023049,2]
[310090005,1704317439937,-8205.14973904,0.00023049,2]
[310090006,1704317439946,-1448.27614699,0.00023068,2]
[310090007,1704317439958,-1002.31647617,0.00023068,2]
[310090008,1704317439968,-274.61671695,0.00023069,2]
[310090010,1704317439977,-817.07799572,0.0002307,2]
[310090035,1704317441647,-1491.20753024,0.0002307,2]
[310090036,1704317441657,-112.55385817,0.0002307,2]
[310090037,1704317441669,-42.44614183,0.0002307,2]
[310090038,1704317441678,-369.84974276,0.00023088,2]
[310090039,1704317441688,-191.74291,0.00023089,2]
[310090040,1704317441698,-537.41483407,0.00023089,2]
[310090041,1704317441709,-1354.69,0.00023089,2]
[310090042,1704317441719,-4839.97520519,0.0002309,2]
[310090043,1704317441736,-399.683,0.0002309,2]
[310090060,1704317443446,-637.40759071,0.0002309,2]
[310090061,1704317443459,-4206.88082393,0.0002309,2]
[310090062,1704317443472,-311.54207616,0.0002309,2]
[310090063,1704317443485,-912.999999,0.0002309,2]
[310090064,1704317443552,-1484.91995918,0.0002309,2]
[310090065,1704317443565,-8699.08050825,0.0002309,2]
[310090066,1704317443574,-153.52725596,0.00024922,2]
[310090067,1704317443585,-166.71010626,0.00025,2]
[310090068,1704317443594,-446.69,0.00026642,2]
[310090069,1704317443604,-153.52725596,0.00026886,2]
[310090070,1704317443614,-350.0,0.00027,3]
[310090071,1704317443624,-176.30584553,0.000274,6]
[310090072,1704317443635,-3522.85817467,0.000274,2]
[310090073,1704317443647,-10559.99750004,0.000274,2]
[310090074,1704317443659,-131.14432529,0.000274,2]
[310090075,1704317443669,-1710.0,0.000274,2]
[310090076,1704317443679,-155.0,0.00027616,2]
[310090077,1704317443689,-210.0,0.00027958,2]
[310090078,1704317443703,-200.0,0.00028,2]
[310090079,1704317443713,-500.0,0.00028093,2]
[310090080,1704317443723,-194.9,0.00028307,2]
[310090081,1704317443733,-800.0,0.00028431,2]
[310090083,1704317443742,-17245.89207471,0.00028437,2]
[310090086,1704317443759,-6644.10792529,0.00028437,2]
[310090087,1704317443770,-2817.14,0.00028544,2]
[310090088,1704317443781,-164.33,0.00028591,2]
[310090089,1704317443792,-877.8,0.00028592,2]
[310090090,1704317443803,-250.0,0.00028676,2]
[310090091,1704317443814,-150.0,0.00028684,2]
[310090092,1704317443825,-474.08,0.00028688,2]
[310090093,1704317443835,-155.13,0.0002869,2]
[310090094,1704317443846,-250.0,0.00028846,2]
[310090095,1704317443857,-153.52725596,0.00028849,2]
[310090096,1704317443867,-446.69,0.00028905,2]
[310090097,1704317443877,-194.91,0.00028986,2]
[310090098,1704317443889,-400.0,0.00029,3]
[310090099,1704317443898,-200.0,0.00029429,2]
[310090100,1704317443907,-441.33,0.00029525,2]
[310090101,1704317443917,-179.58,0.0002959,2]
[310090102,1704317443927,-619.96222449,0.00029662,2]
[310090103,1704317443936,-474.08,0.00029666,2]
[310090104,1704317443946,-194.9,0.00029722,2]
[310090105,1704317443955,-152.46,0.00029739,2]
[310090106,1704317443965,-3180.04163262,0.00029756,2]
[310090107,1704317443974,-558.39978503,0.00029896,2]
[310090108,1704317443984,-9604.33331486,0.0003,2]
[310090109,1704317443994,-155.0,0.0003,2]
[310090110,1704317444003,-152.46,0.00030036,2]
[310090111,1704317444013,-155.13,0.00030039,2]
[310090112,1704317444022,-164.33,0.00030077,2]
[310090113,1704317444032,-157.78,0.00030129,2]
[310090114,1704317444042,-186.82,0.00030293,2]
[310090115,1704317444052,-151.81793082,0.00030299,2]
[310090116,1704317444061,-152.46,0.00030334,2]
[310090117,1704317444071,-500.0,0.0003049,2]
[310090118,1704317444081,-336.30716261,0.00030586,14]
[310090119,1704317444090,-558.39978502,0.00030586,2]
[310090120,1704317444100,-152.46,0.00030631,2]
[310090121,1704317444109,-474.08,0.00030645,2]
[310090122,1704317444118,-5000.0,0.0003065,10]
[310090123,1704317444127,-640.77986146,0.00030685,2]
[310090124,1704317444138,-25125.68128321,0.00030686,4]
[310090125,1704317444148,-280.14979655,0.00030686,4]
[310090126,1704317444157,-2955.1242667,0.0003069,2]
[310090127,1704317444167,-1670.97702,0.0003069,2]
[310090128,1704317444177,-155.0,0.00030744,4]
[310090129,1704317444187,-379.48437948,0.0003075,4]
[310090130,1704317444196,-500.0,0.00030752,2]
[310090131,1704317444503,-14753.0406,0.00030797,2]
[310090132,1704317444515,-1000.0,0.000308,2]
[310090133,1704317444525,-153.52725596,0.00030813,2]
[310090134,1704317444535,-1000.0,0.00030845,2]
[310090135,1704317444545,-1000.0,0.00030845,2]
[310090136,1704317444555,-1000.0,0.00030845,2]
[310090137,1704317444565,-1000.0,0.00030845,2]
[310090138,1704317444575,-1000.0,0.00030845,2]
[310090139,1704317444585,-338.9372,0.00030845,2]
[310090140,1704317444594,-500.0,0.00030845,2]
[310090141,1704317444604,-500.0,0.00030845,2]
[310090142,1704317444613,-500.0,0.00030845,2]
[310090143,1704317444625,-500.0,0.00030845,2]
[310090144,1704317444635,-184.7375,0.00030845,2]
[310090145,1704317444645,-1144.10817692,0.00030872,2]
[310090146,1704317444654,-6054.3043,0.00030897,2]
[310090147,1704317444664,-744.7107,0.00030897,2]
[310090148,1704317444674,-527.27825206,0.00030899,4]
[310090149,1704317444683,-1000.0,0.000309,2]
[310090150,1704317444692,-1043.85345009,0.000309,5]
[310090151,1704317444701,-906.12658296,0.000309,2]
[310090152,1704317444711,-152.46,0.00030929,2]
[310090153,1704317444720,-729.06991921,0.00030949,2]
[310090154,1704317444730,-190.92140624,0.00030962,4]
[310090155,1704317444739,-777.9714685,0.0003099,2]
[310090156,1704317445086,-28.73777058,0.0003099,2]
[310090157,1704317445097,-303.71660092,0.0003099,2]
[310090158,1704317445107,-851.75799488,0.00030996,2]
[310090159,1704317445117,-155.0,0.00030996,2]
[310090160,1704317445127,-217.17335148,0.00030997,4]
[310090161,1704317445137,-3276.30303467,0.00030997,4]
[310090162,1704317445150,-12026.88841248,0.00030997,4]
[310090172,1704317446233,-204.00074665,0.00023069,2]
[310090173,1704317446243,-353.14452739,0.00030749,4]
[310090174,1704317446297,-275.96667068,0.00030749,4]
[310090175,1704317446307,-6741.89519197,0.00030997,4]
[310090176,1704317446317,-284.97838836,0.00030998,14]
[310090177,1704317446330,-416.54397333,0.00030998,4]
[310090178,1704317446340,-540.90072547,0.00030998,4]
[310090179,1704317446350,-2258.28406865,0.00030998,4]
[310090180,1704317446360,-278.31410173,0.00030998,4]
[310090181,1704317446370,-4609.49037417,0.00030998,4]
[310090182,1704317446380,-3285.13803586,0.00030999,2]
[310090183,1704317446393,-830.86432648,0.00030999,4]
[310090184,1704317446403,-251.99880636,0.00030999,4]
[310090185,1704317446413,-150.01,0.00030999,2]
[310090186,1704317446423,-12274.84378891,0.00031,3]
[310090187,1704317446436,-2132.9,0.00031,3]
[310090188,1704317446448,-259.72676557,0.00031,3]
[310090189,1704317446466,-6635.28811499,0.00031,3]
[310090190,1704317450193,-2262.84991875,0.00030748,4]
[310090191,1704317450205,-873.51984646,0.00030749,4]
[310090192,1704317450216,-306.28504271,0.00030749,4]
[310090193,1704317450226,-401.30354916,0.000309,2]
[310090194,1704317450243,-155.0,0.00030998,4]
[310090195,1704317450253,-263.01526021,0.00030999,2]
[310090196,1704317450262,-3285.13803586,0.00030999,2]
[310090197,1704317450273,-57317.15243098,0.00031,3]
[310090198,1704317450283,-54914.68866134,0.00031,2]
[310090199,1704317450317,-2212.67590498,0.00031,2]
[310090200,1704317450330,-771.80532413,0.00031,2]
[310090201,1704317450344,-535.5599681,0.00031,2]
[310090202,1704317450357,-640.77986146,0.00031,2]
[310090203,1704317450387,-998.13995167,0.00031,2]
[310090303,1704317458905,854.51248375,0.00022653,2]
[310090304,1704317460383,1020.14806453,0.00022653,2]
[310090305,1704317526872,1020.14806453,0.00022653,2]
[310090306,1704317527365,1878.16211304,0.00022653,2]
[310090307,1704317540921,1020.14806453,0.00022653,2]
[310090308,1704317543375,1878.16211304,0.00022653,2]
[310090309,1704317558886,1020.14806453,0.00022653,2]
[310090310,1704317559364,567.84313042,0.00022653,2]
[310090311,1704317574887,718.71416873,0.00022653,2]
[310090312,1704317692719,479591.42639656,0.00022653,2]
[310090313,1704318081906,153.52725596,0.00022448,2]
[310090314,1704318130940,1091678.19923059,0.00022448,2]
[310090315,1704318150940,819659.70879952,0.00022448,2]
[310090316,1704318181971,1878.16211304,0.00022448,2]
[310090317,1704318203965,1878.16211304,0.00022448,2]
[310090318,1704318223979,1878.16211304,0.00022448,2]
[310090319,1704318239976,1878.16211304,0.00022448,2]
[310090320,1704318263987,1878.16211304,0.00022448,2]
[310090321,1704318279986,1878.16211304,0.00022448,2]
[310090334,1704318297992,1872.89261272,0.00022448,2]
[310090335,1704318300755,1794.9412,0.00022446,2]
[310090336,1704318521887,3180.66829188,0.00021623,2]
[310090339,1704318631391,-244.43466943,0.0002252,2]
[310090340,1704318631403,-222.29996028,0.0002252,4]
[310090341,1704318631414,-1245.97825538,0.0002252,2]
[310090342,1704318631429,-492.18609625,0.0002252,2]
[310090343,1704318631453,-310.16,0.0002252,2]
[310090344,1704318631547,-1319.77071411,0.0002252,2]
[310090345,1704318631560,-4117.58500009,0.0002252,2]
[310090346,1704318631569,-33652.19202848,0.00022521,2]
[310090347,1704318631578,-1112.50821418,0.00022524,2]
[310090348,1704318631588,-155.0,0.00022527,2]
[310090349,1704318631598,-361.30964358,0.00022645,2]
[310090350,1704318631608,-275.55362851,0.0002667,5]
[310090351,1704318631617,-402.02,0.0002667,2]
[310090352,1704318631628,-180.0,0.00027897,2]
[310090353,1704318631637,-499.99,0.00027897,2]
[310090354,1704318631646,-451.90467853,0.00028014,2]
[310090355,1704318631655,-150.63,0.00028181,2]
[310090356,1704318631665,-167.03,0.00028353,2]
[310090357,1704318631674,-162.39,0.00028374,2]
[310090358,1704318631683,-360.0,0.00028447,2]
[310090359,1704318631693,-446.76,0.00028529,2]
[310090360,1704318631702,-162.52,0.00028743,2]
[310090361,1704318631711,-438.9,0.00028743,2]
[310090362,1704318631721,-640.0,0.00028768,2]
[310090363,1704318631730,-2715.39,0.00028801,2]
[310090364,1704318631740,-964.87884863,0.0002882,4]
[310090365,1704318631750,-352.31361469,0.0002882,2]
[310090366,1704318631760,-41322.3517,0.000289,2]
[310090368,1704318631775,-828.5256,0.000289,2]
[310090370,1704318631785,-100000.0,0.000289,2]
[310090372,1704318631795,-130847.2973,0.000289,2]
[310090373,1704318631804,-183.62,0.0002892,2]
[310090375,1704318631816,-402.02,0.00028934,2]
[310090378,1704318631827,-86805.65608865,0.00029,2]
[310090380,1704318631837,-446.76,0.00029508,2]
[310090382,1704318631846,-964.87884863,0.00029816,4]
[310090385,1704318631857,-155.0,0.0003,2]
[310090387,1704318631867,-150.0,0.0003,2]
[310090388,1704318631878,-151.83132911,0.0003,2]
[310090391,1704318631889,-449.28143397,0.0003,2]
[310090393,1704318631904,-185.39827876,0.0003,2]
[310090395,1704318631918,-151.81793082,0.00030299,2]
[310090397,1704318631927,-183.62,0.00030366,2]
[310090399,1704318631937,-446.76,0.00030486,2]
[310090401,1704318631946,-150.0,0.00030548,2]
[310090403,1704318631955,-164.2384182,0.00030748,4]
[310090405,1704318631965,-200.0,0.00030752,2]
[310090407,1704318631975,-731.24,0.00030798,2]
[310090409,1704318631985,-175.73,0.000308,2]
[310090411,1704318631994,-964.87884863,0.00030811,5]
[310090413,1704318632004,-150.8053372,0.000309,3]
[310090415,1704318632013,-724.90126636,0.000309,2]
[310090417,1704318632023,-500.0,0.00030917,2]
[310090418,1704318632033,-670.83022847,0.0003099,4]
[310090419,1704318632043,-202.47773395,0.0003099,2]
[310090420,1704318632053,-2126.83430456,0.00030997,4]
[310090421,1704318632063,-292.42178579,0.00030997,4]
[310090422,1704318632073,-166.47820893,0.00030997,4]
[310090423,1704318632082,-217.17335148,0.00030997,4]
[310090424,1704318632092,-251.99880636,0.00030998,4]
[310090425,1704318632102,-151.0,0.00030999,7]
[310090426,1704318632112,-418.39942505,0.00030999,4]
[310090427,1704318632122,-3285.13803586,0.00030999,2]
[310090428,1704318632136,-36946.74342834,0.00030999,4]
[310090429,1704318632146,-230.32,0.00030999,2]
[310090430,1704318632155,-1379.0,0.00031,5]
[310090431,1704318632166,-289926.35032832,0.00031,2]
[310090432,1704318632176,-6050.41908392,0.00031,4]
[310090433,1704318632186,-600.0,0.00031,32]
[310090434,1704318632196,-1070.0,0.00031,3]
[310090435,1704318632206,-1000.0,0.00031,3]
[310090436,1704318632216,-450.0,0.00031,3]
[310090437,1704318632225,-2000.0,0.00031,2]
[310090438,1704318632235,-200.0,0.00031,2]
[310090439,1704318632245,-187.039762,0.00031,3]
[310090440,1704318632255,-500.0,0.00031,2]
[310090441,1704318632264,-845.643041,0.00031,2]
[310090442,1704318632273,-264.89,0.00031,2]
[310090443,1704318632283,-151.0,0.00031,7]
[310090444,1704318632295,-1892.48085,0.00031,2]
[310090445,1704318632305,-160.07,0.00031004,2]
[310090446,1704318632315,-500.0,0.00031082,2]
[310090447,1704318632325,-200.0,0.00031082,2]
[310090448,1704318632334,-150.0,0.00031096,2]
[310090449,1704318632344,-7908.6111983,0.00031116,2]
[310090450,1704318632353,-194.9,0.00031137,2]
[310090451,1704318632364,-402.02,0.00031198,2]
[310090452,1704318632373,-857.02,0.00031212,2]
[310090453,1704318632383,-152.46,0.00031226,2]
[310090454,1704318632394,-1144.10817693,0.0003124,2]
[310090455,1704318632405,-160.07,0.00031271,2]
[310090456,1704318632414,-2000.0,0.0003131,2]
[310090457,1704318632426,-200.0,0.0003131,2]
[310090458,1704318632436,-175.73,0.00031348,2]
[310090459,1704318632447,-724.90126633,0.00031369,2]
[310090460,1704318632456,-155.13,0.00031389,2]
[310090461,1704318632466,-150.80533719,0.00031396,4]
[310090462,1704318632477,-151.0,0.00031401,120]
[310090463,1704318632487,-500.0,0.00031412,2]
[310090464,1704318632497,-446.76,0.00031465,2]
[310090465,1704318632507,-729.06991921,0.00031498,2]
[310090466,1704318632517,-153.84,0.00031509,2]
[310090467,1704318632528,-152.46,0.00031523,2]
[310090468,1704318632538,-160.07,0.00031539,2]
[310090469,1704318632549,-500.0,0.00031548,2]
[310090470,1704318632559,-909.1,0.000316,2]
[310090471,1704318632570,-815.0,0.000316,2]
[310090472,1704318632580,-342.0,0.000316,2]
[310090473,1704318632590,-407.06,0.00031616,2]
[310090474,1704318632600,-2000.0,0.00031623,2]
[310090475,1704318632612,-200.0,0.00031623,2]
[310090476,1704318632622,-150.0,0.00031644,2]
[310090477,1704318632632,-7193.0,0.0003167,2]
[310090478,1704318632643,-151.94,0.00031696,2]
[310090479,1704318632655,-7500.0,0.000317,2]
[310090480,1704318632664,-44.91199821,0.000317,2]
[310090481,1704318632678,-127.90766171,0.000317,2]
[310090482,1704318632688,-3289.87945368,0.0003171,2]
[310090483,1704318632700,-1064.22017222,0.0003171,2]
[310090484,1704318632713,-645.9003741,0.0003171,2]
[310090485,1704318632723,-500.0,0.00031741,2]
[310090486,1704318632732,-45.21866879,0.00031741,2]
[310090487,1704318632744,-154.78133121,0.00031741,2]
[310090488,1704318632754,-102.89346364,0.00031741,7]
[310090489,1704318632768,-48.10653636,0.00031741,7]
[310090490,1704318632779,-151.0,0.00031741,7]
[310090491,1704318632788,-151.0,0.00031741,7]
[310090492,1704318632798,-151.0,0.00031741,7]
[310090493,1704318632807,-2289.28608915,0.00031741,3]
[310090494,1704318632819,-974.19748854,0.00031741,3]
[310090495,1704318632860,-2646.06207816,0.00031741,3]
[310090496,1704318632924,-497.48514,0.00031741,3]
[310090497,1704318632936,-439.53018558,0.00031741,3]
[310090498,1704318632948,-511.06796016,0.00031741,3]
[310090499,1704318632968,-418.27488,0.00031741,3]
[310090500,1704318632987,-11959.7703947,0.00031741,3]
[310090501,1704318632999,-13219.51443775,0.00031741,3]
[310090502,1704318633026,-430.67499105,0.00031741,3]
[310090517,1704318637629,-10492.4099566,0.00022519,2]
[310090518,1704318637639,-210.0,0.00027518,2]
[310090519,1704318637649,-210.0,0.00031578,9]
[310090520,1704318637660,-2816.53461597,0.00031643,2]
[310090521,1704318637670,-8010.70860077,0.00031741,3]
[310090522,1704318637821,-403.87145906,0.00031741,3]
[310090523,1704318637891,-1155.400361,0.00031741,3]
[310090524,1704318637905,-337.16451685,0.00031741,3]
[310090525,1704318637919,-540.4,0.00031741,3]
[310090534,1704318640088,-12811.10614,0.00031741,3]
[310090535,1704318640815,-1085.28967512,0.00031741,3]
[310090536,1704318640828,-856.65350222,0.00031741,3]
[310090537,1704318640839,-4554.74331548,0.00031741,3]
[310090538,1704318640886,-259.77595564,0.00031741,3]
[310090574,1704318642431,-666.26403518,0.00031741,3]
[310090583,1704318642558,-712.8632625,0.00031741,3]
[310090584,1704318642570,-859.812571,0.00031741,3]
[310090610,1704318645460,-1408.26730798,0.0003174,2]
[310090611,1704318645470,-1357.29296009,0.00031741,3]
[310090612,1704318645480,-1150.92755595,0.0003179,2]
[310090613,1704318645526,-741.55330405,0.0003179,2]
[310090614,1704318645536,-6615.54282977,0.00031797,2]
[310090615,1704318645546,-1010.05915409,0.00031799,2]
[310090616,1704318645557,-193.64471209,0.000318,2]
[310090617,1704318645594,-20295.37518824,0.000318,2]
[310090618,1704318645604,-151.0,0.000318,7]
[310090619,1704318645614,-284.56636595,0.000318,7]
[310090620,1704318645629,-151.0,0.000318,7]
[310090621,1704318645638,-151.0,0.000318,7]
[310090622,1704318645648,-222103.79835,0.000318,2]
[310090623,1704318645658,-151.0,0.000318,7]
[310090624,1704318645668,-151.0,0.000318,7]
[310090625,1704318645677,-151.0,0.000318,7]
[310090626,1704318645687,-160.07,0.00031806,2]
[310090627,1704318645698,-964.87884863,0.00031807,5]
[310090628,1704318645707,-5000.0,0.00031808,2]
[310090629,1704318645717,-183.62,0.00031812,2]
[310090630,1704318645726,-152.46,0.00031821,2]
[310090631,1704318645735,-724.90126633,0.00031838,2]
[310090632,1704318645744,-194.91,0.00031884,2]
[310090633,1704318645753,-150.80533719,0.00031892,4]
[310090634,1704318645763,-175.73,0.00031896,2]
[310090635,1704318645772,-150.0,0.000319,2]
[310090636,1704318645782,-187.31424574,0.000319,3]
[310090637,1704318645792,-255.78,0.000319,7]
[310090638,1704318645801,-155.0,0.000319,2]
[310090639,1704318645814,-2000.0,0.00031939,2]
[310090640,1704318645824,-200.0,0.00031939,2]
[310090641,1704318645834,-44843.4310616,0.00031992,2]
[310090642,1704318645844,-2429.4240953,0.00031992,2]
[310090644,1704318645855,-151.0,0.00031992,7]
[310090647,1704318645864,-151.0,0.00031992,7]
[310090650,1704318645874,-335.46477516,0.00031996,10]
[310090652,1704318645884,-347.5554,0.00031998,2]
[310090654,1704318645895,-35521.66,0.00031998,3]
[310090656,1704318645905,-50000.0,0.00032,2]
[310090658,1704318645915,-151.0,0.00032,7]
[310090660,1704318645924,-151.0,0.00032,7]
[310090662,1704318645934,-151.0,0.00032,7]
[310090663,1704318645944,-151.0,0.00032,7]
[310090665,1704318645953,-151.0,0.00032,7]
[310090667,1704318645963,-600.0,0.00032,33]
[310090668,1704318645973,-1000.0,0.00032,3]
[310090669,1704318645984,-1000.0,0.00032,3]
[310090670,1704318645994,-793.7863035,0.00032,3]
[310090671,1704318646004,-17710.40670226,0.00032,2]
[310090672,1704318646013,-151.0,0.00032,7]
[310090674,1704318646023,-151.0,0.00032,7]
[310090677,1704318646032,-157.0,0.00032,2]
[310090680,1704318646041,-241.53921542,0.00032,2]
[310090683,1704318646051,-241.53921542,0.00032,2]
[310090686,1704318646060,-241.53921542,0.00032,2]
[310090689,1704318646069,-241.53921542,0.00032,2]
[310090692,1704318646079,-241.53921542,0.00032,2]
[310090695,1704318646088,-241.53921542,0.00032,2]
[310090698,1704318646098,-241.53921542,0.00032,2]
[310090701,1704318646107,-241.53921542,0.00032,2]
[310090704,1704318646117,-241.53921542,0.00032,2]
[310090707,1704318646127,-241.53921542,0.00032,2]
[310090710,1704318646140,-241.53921542,0.00032,2]
[310090713,1704318646149,-241.53921542,0.00032,2]
[310090716,1704318646159,-241.53921542,0.00032,2]
[310090720,1704318646168,-241.53921542,0.00032,2]
[310090723,1704318646177,-241.53921542,0.00032,2]
[310090726,1704318646186,-241.53921542,0.00032,2]
[310090729,1704318646195,-241.53921542,0.00032,2]
[310090732,1704318646205,-241.53921542,0.00032,2]
[310090735,1704318646215,-241.53921542,0.00032,2]
[310090737,1704318646224,-241.53921542,0.00032,2]
[310090739,1704318646233,-241.53921542,0.00032,2]
[310090740,1704318646243,-241.53921542,0.00032,2]
[310090741,1704318646252,-241.53921542,0.00032,2]
[310090742,1704318646261,-241.53921542,0.00032,2]
[310090743,1704318646270,-241.53921542,0.00032,2]
[310090744,1704318646280,-241.53921542,0.00032,2]
[310090745,1704318646289,-241.53921542,0.00032,2]
[310090746,1704318646299,-241.53921542,0.00032,2]
[310090747,1704318646311,-241.53921542,0.00032,2]
[310090748,1704318646320,-241.53921542,0.00032,2]
[310090749,1704318646330,-241.53921542,0.00032,2]
[310090750,1704318646341,-241.53921542,0.00032,2]
[310090751,1704318646351,-241.53921542,0.00032,2]
[310090752,1704318646360,-241.53921542,0.00032,2]
[310090753,1704318646370,-241.53921542,0.00032,2]
[310090754,1704318646381,-241.53921542,0.00032,2]
[310090755,1704318646390,-241.53921542,0.00032,2]
[310090756,1704318646402,-241.53921542,0.00032,2]
[310090757,1704318646412,-241.53921542,0.00032,2]
[310090758,1704318646421,-241.53921542,0.00032,2]
[310090759,1704318646431,-241.53921542,0.00032,2]
[310090760,1704318646442,-241.53921542,0.00032,2]
[310090761,1704318646453,-241.53921542,0.00032,2]
[310090762,1704318646463,-241.53921542,0.00032,2]
[310090763,1704318646472,-241.53921542,0.00032,2]
[310090764,1704318646482,-241.53921542,0.00032,2]
[310090765,1704318646491,-241.53921542,0.00032,2]
[310090766,1704318646500,-241.53921542,0.00032,2]
[310090767,1704318646510,-241.53921542,0.00032,2]
[310090768,1704318646520,-241.53921542,0.00032,2]
[310090769,1704318646529,-241.53921542,0.00032,2]
[310090770,1704318646539,-241.53921542,0.00032,2]
[310090771,1704318646548,-241.53921542,0.00032,2]
[310090772,1704318646557,-241.53921542,0.00032,2]
[310090773,1704318646567,-241.53921542,0.00032,2]
[310090774,1704318646577,-241.53921542,0.00032,2]
[310090775,1704318646586,-241.53921542,0.00032,2]
[310090776,1704318646596,-241.53921542,0.00032,2]
[310090777,1704318646605,-241.53921542,0.00032,2]
[310090778,1704318646616,-241.53921542,0.00032,2]
[310090779,1704318646627,-241.53921542,0.00032,2]
[310090780,1704318646637,-241.53921542,0.00032,2]
[310090781,1704318646657,-241.53921542,0.00032,2]
[310090782,1704318646668,-241.53921542,0.00032,2]
[310090783,1704318646678,-241.53921542,0.00032,2]
[310090784,1704318646688,-241.53921542,0.00032,2]
[310090785,1704318646699,-241.53921542,0.00032,2]
[310090786,1704318646709,-241.53921542,0.00032,2]
[310090787,1704318646719,-241.53921542,0.00032,2]
[310090788,1704318646729,-241.53921542,0.00032,2]
[310090789,1704318646739,-241.53921542,0.00032,2]
[310090790,1704318646749,-241.53921542,0.00032,2]
[310090791,1704318646759,-241.53921542,0.00032,2]
[310090792,1704318646770,-241.53921542,0.00032,2]
[310090793,1704318646780,-241.53921542,0.00032,2]
[310090794,1704318646790,-241.53921542,0.00032,2]
[310090795,1704318646800,-241.53921542,0.00032,2]
[310090796,1704318646811,-241.53921542,0.00032,2]
[310090797,1704318646821,-241.53921542,0.00032,2]
[310090798,1704318646830,-241.53921542,0.00032,2]
[310090799,1704318646840,-241.53921542,0.00032,2]
[310090800,1704318646851,-241.53921542,0.00032,2]
[310090801,1704318646860,-241.53921542,0.00032,2]
[310090802,1704318646870,-241.53921542,0.00032,2]
[310090803,1704318646882,-241.53921542,0.00032,2]
[310090804,1704318646892,-241.53921542,0.00032,2]
[310090805,1704318646902,-241.53921542,0.00032,2]
[310090806,1704318646912,-241.53921542,0.00032,2]
[310090807,1704318646922,-241.53921542,0.00032,2]
[310090808,1704318646933,-241.53921542,0.00032,2]
[310090809,1704318646943,-241.53921542,0.00032,2]
[310090810,1704318646954,-241.53921542,0.00032,2]
[310090811,1704318646965,-241.53921542,0.00032,2]
[310090812,1704318646975,-241.53921542,0.00032,2]
[310090813,1704318646986,-241.53921542,0.00032,2]
[310090814,1704318646996,-241.53921542,0.00032,2]
[310090815,1704318647006,-241.53921542,0.00032,2]
[310090816,1704318647016,-241.53921542,0.00032,2]
[310090817,1704318647026,-241.53921542,0.00032,2]
[310090818,1704318647036,-241.53921542,0.00032,2]
[310090819,1704318647046,-360.0,0.00032003,2]
[310090820,1704318647056,-255.78,0.00032037,7]
[310090821,1704318647087,-151.0,0.00032042,30]
[310090822,1704318647098,-160.07,0.00032073,2]
[310090823,1704318647108,-500.0,0.00032096,2]
[310090824,1704318647118,-152.46,0.00032118,2]
[310090825,1704318647130,-937.85,0.00032136,2]
[310090826,1704318647140,-263.71598306,0.00032174,7]
[310090827,1704318647150,-455.3331,0.00032198,2]
[310090828,1704318647160,-293.671,0.0003221,2]
[310090829,1704318647170,-8677.869,0.0003221,2]
[310090830,1704318647180,-2847.773,0.0003221,2]